lending/lending_fUSD_20250429
["ID","MTS","AMOUNT","RATE_DAILY","PERIOD"]
[359345948,1745946667027,-487.56,0.00028493,2]
[359345949,1745946667037,-894.34,0.00028493,2]
[359345950,1745946667047,-503.3,0.00028493,2]
[359345951,1745946667057,-470.0,0.00028493,2]
[359345952,1745946667068,-631.72,0.00028493,2]
[359345953,1745946667078,-634.28,0.00028493,2]
[359345954,1745946667087,-1263.57,0.00028493,2]
[359345955,1745946667097,-9944.47,0.00028493,2]
[359345956,1745946667107,-937.96,0.00028493,2]
[359345957,1745946667117,-470.0,0.00028493,2]
[359345958,1745946667127,-470.0,0.00028493,2]
[359345959,1745946667136,-470.0,0.00028493,2]
[359345960,1745946667146,-511.67,0.00028493,2]
[359345961,1745946667156,-482.38,0.00028493,2]
[359345962,1745946667166,-153.24072602,0.000285,7]
[359345963,1745946667176,-4130.51247808,0.00028513,2]
[359345964,1745946667186,-501.92046133,0.00028521,5]
[359345965,1745946667197,-486.86708499,0.00028568,2]
[359345966,1745946667209,-470.0,0.00028607,2]
[359345967,1745946667220,-4130.51247808,0.00028666,2]
[359345968,1745946667230,-10217.54334314,0.00028666,2]
[359345969,1745946667241,-51455.88,0.00028681,2]
[359345970,1745946667252,-562.67,0.00028717,2]
[359345971,1745946667261,-11565.2933805,0.00028718,2]
[359345972,1745946667271,-57764.15746095,0.00028718,2]
[359345973,1745946667291,-470.0,0.00027397,2]
[359345974,1745946667300,-1661.62716614,0.00028718,2]
[359345975,1745946667312,-574.51572812,0.00028718,2]
[359345976,1745946667331,-470.0,0.00027671,2]
[359345977,1745946667341,-1347.12700002,0.00028718,2]
[359345978,1745946667352,-1434.04625,0.00028718,2]
[359345979,1745946667657,-470.0,0.00027397,2]
[359345980,1745946667667,-500.0,0.00027397,2]
[359345981,1745946667676,-500.0,0.00027397,2]
[359345982,1745946667685,-470.0,0.00027397,2]
[359345983,1745946667695,-470.0,0.00027671,2]
[359345984,1745946667705,-470.0,0.00027945,2]
[359345985,1745946667715,-3336.05887877,0.00028718,2]
[359345986,1745946667724,-802.1020962,0.00028738,2]
[359345987,1745946667734,-11766.57393061,0.00028738,2]
[359345988,1745946667745,-510.5957943,0.00028738,2]
[359345989,1745946667761,-470.0,0.00027397,2]
[359345990,1745946667771,-131017.29343729,0.00028738,2]
[359345991,1745946667781,-9769.38,0.00028766,2]
[359345992,1745946667791,-4973.44,0.00028766,2]
[359345993,1745946667801,-1095.01,0.00028766,2]
[359345994,1745946667811,-2962.6,0.00028766,2]
[359345995,1745946667821,-562.67,0.00028766,2]
[359345996,1745946667830,-562.67,0.00028766,2]
[359345997,1745946667840,-500.0,0.00028766,2]
[359345998,1745946667850,-500.0,0.00028766,2]
[359345999,1745946667860,-500.0,0.00028766,2]
[359346000,1745946667870,-500.0,0.00028766,2]
[359346001,1745946667881,-470.0,0.00028767,2]
[359346002,1745946667890,-500.0,0.00028767,2]
[359346003,1745946667900,-350.0,0.00028767,2]
[359346004,1745946667910,-470.0,0.00028767,2]
[359346005,1745946667920,-7947.791581,0.00028767,2]
[359346006,1745946667930,-777.698462,0.00028767,2]
[359346007,1745946667940,-470.0,0.00028767,2]
[359346008,1745946667950,-464.111352,0.00028767,2]
[359346009,1745946667960,-470.0,0.00028767,2]
[359346010,1745946667969,-470.0,0.00028767,2]
[359346011,1745946667979,-722.26,0.00028767,2]
[359346012,1745946667988,-470.0,0.00028767,2]
[359346013,1745946667999,-709.98,0.00028767,2]
[359346014,1745946668010,-775.0,0.00028767,2]
[359346015,1745946668019,-470.0,0.00028767,2]
[359346016,1745946668030,-470.0,0.00028767,2]
[359346017,1745946668235,-470.0,0.00028767,2]
[359346018,1745946668245,-470.0,0.00028767,2]
[359346019,1745946668254,-470.0,0.00028767,2]
[359346020,1745946668264,-470.0,0.00028767,2]
[359346021,1745946668274,-470.0,0.00028767,2]
[359346022,1745946668283,-470.0,0.00028767,2]
[359346023,1745946668292,-701.98,0.00028767,2]
[359346024,1745946668301,-470.0,0.00028767,2]
[359346025,1745946668310,-470.0,0.00028767,2]
[359346026,1745946668319,-470.0,0.00028767,2]
[359346027,1745946668329,-470.0,0.00028767,2]
[359346028,1745946668337,-659.25,0.00028767,2]
[359346029,1745946668347,-1052.85,0.00028767,2]
[359346030,1745946668356,-473.99261241,0.00028767,2]
[359346031,1745946668365,-470.0,0.00028767,2]
[359346032,1745946668375,-547.52618925,0.00028767,2]
[359346033,1745946668384,-470.0,0.00028767,2]
[359346034,1745946668393,-596.49,0.00028767,2]
[359346035,1745946668403,-470.0,0.00028767,2]
[359346036,1745946668412,-470.0,0.00028767,2]
[359346037,1745946668421,-470.0,0.00028767,2]
[359346038,1745946668430,-470.0,0.00028767,2]
[359346039,1745946668439,-470.0,0.00028767,2]
[359346040,1745946668448,-910.59,0.00028767,2]
[359346041,1745946668457,-841.84,0.00028767,2]
[359346042,1745946668467,-470.0,0.00028767,2]
[359346043,1745946668476,-470.0,0.00028767,2]
[359346044,1745946668485,-470.0,0.00028767,2]
[359346045,1745946668494,-470.0,0.00028767,2]
[359346046,1745946668504,-637.46,0.00028767,2]
[359346047,1745946668513,-470.0,0.00028767,2]
[359346048,1745946668522,-494.75,0.00028767,2]
[359346049,1745946668532,-482.28,0.00028767,2]
[359346050,1745946668541,-470.0,0.00028767,2]
[359346051,1745946668550,-251.77993011,0.00028767,2]
[359346052,1745946668560,-470.0,0.00028767,2]
[359346053,1745946668569,-539.92478021,0.00028767,2]
[359346054,1745946668578,-470.0,0.00028767,2]
[359346055,1745946668587,-1271.65,0.00028767,2]
[359346056,1745946668597,-470.0,0.00028767,2]
[359346057,1745946668607,-786.63,0.00028767,2]
[359346058,1745946668616,-470.0,0.00028767,2]
[359346059,1745946668626,-653.38,0.00028767,2]
[359346060,1745946668636,-470.0,0.00028767,2]
[359346061,1745946668645,-655.36,0.00028767,2]
[359346062,1745946668655,-648.84,0.00028767,2]
[359346063,1745946668665,-592.13,0.00028767,2]
[359346064,1745946668675,-470.0,0.00028767,2]
[359346065,1745946668685,-470.0,0.00028767,2]
[359346066,1745946668695,-470.0,0.00028767,2]
[359346067,1745946668704,-470.0,0.00028767,2]
[359346068,1745946668714,-300.0,0.00028767,2]
[359346069,1745946668723,-520.95,0.00028767,2]
[359346070,1745946668732,-607.58,0.00028767,2]
[359346071,1745946668742,-470.0,0.00028767,2]
[359346072,1745946668753,-1617.0,0.00028767,2]
[359346073,1745946668763,-470.0,0.00028767,2]
[359346074,1745946668774,-551.22,0.00028767,2]
[359346075,1745946668783,-470.0,0.00028767,2]
[359346076,1745946668792,-470.0,0.00028767,2]
[359346077,1745946668802,-1242.89,0.00028767,2]
[359346078,1745946668812,-470.0,0.00028767,2]
[359346079,1745946668822,-814.24,0.00028767,2]
[359346080,1745946668832,-470.0,0.00028767,2]
[359346081,1745946668841,-819.69,0.00028767,2]
[359346082,1745946668851,-1068.71,0.00028767,2]
[359346083,1745946668860,-935.31,0.00028767,2]
[359346084,1745946668870,-470.0,0.00028767,2]
[359346085,1745946668880,-470.0,0.00028767,2]
[359346086,1745946668890,-470.0,0.00028767,2]
[359346087,1745946668900,-470.0,0.00028767,2]
[359346088,1745946668910,-470.0,0.00028767,2]
[359346089,1745946668919,-368.28578398,0.00028767,2]
[359346090,1745946668929,-250.0,0.00028767,2]
[359346091,1745946668938,-470.0,0.00028767,2]
[359346092,1745946668948,-470.0,0.00028767,2]
[359346093,1745946668958,-470.0,0.00028767,2]
[359346094,1745946668967,-470.0,0.00028767,2]
[359346095,1745946668978,-572.39,0.00028767,2]
[359346096,1745946668988,-480.0,0.00028767,2]
[359346097,1745946668997,-470.0,0.00028767,2]
[359346098,1745946669007,-470.0,0.00028767,2]
[359346099,1745946669017,-470.0,0.00028767,2]
[359346100,1745946669027,-470.0,0.00028767,2]
[359346101,1745946669037,-556.26,0.00028767,2]
[359346102,1745946669047,-583.43,0.00028767,2]
[359346103,1745946669056,-611.32,0.00028767,2]
[359346104,1745946669066,-470.0,0.00028767,2]
[359346105,1745946669075,-470.0,0.00028767,2]
[359346106,1745946669085,-470.0,0.00028767,2]
[359346107,1745946669095,-817.61,0.00028767,2]
[359346108,1745946669104,-491.12,0.00028767,2]
[359346109,1745946669114,-1263.12,0.00028767,2]
[359346110,1745946669124,-470.0,0.00028767,2]
[359346111,1745946669134,-470.0,0.00028767,2]
[359346112,1745946669143,-625.87,0.00028767,2]
[359346113,1745946669153,-3378.15,0.00028767,2]
[359346114,1745946669162,-470.0,0.00028767,2]
[359346115,1745946669171,-1038.63,0.00028767,2]
[359346116,1745946669181,-470.0,0.00028767,2]
[359346117,1745946669191,-706.75,0.00028767,2]
[359346118,1745946669205,-451.09178306,0.00028767,2]
[359346119,1745946669215,-2351.76,0.00028767,2]
[359346120,1745946669224,-1612.7,0.00028767,2]
[359346121,1745946669233,-470.0,0.00028767,2]
[359346122,1745946669244,-470.0,0.00028767,2]
[359346123,1745946669254,-470.0,0.00028767,2]
[359346124,1745946669263,-504.94,0.00028767,2]
[359346125,1745946669274,-470.0,0.00028767,2]
[359346126,1745946669283,-613.27135347,0.00028767,2]
[359346127,1745946669292,-635.78,0.00028767,2]
[359346128,1745946669301,-411.50536305,0.00028767,2]
[359346129,1745946669311,-3853.5,0.00028767,2]
[359346130,1745946669320,-470.0,0.00028767,2]
[359346131,1745946669330,-470.0,0.00028767,2]
[359346132,1745946669339,-167.720217,0.00028767,2]
[359346133,1745946669348,-1002.8,0.00028767,2]
[359346134,1745946669358,-636.57,0.00028767,2]
[359346135,1745946669367,-802.69,0.00028767,2]
[359346136,1745946669376,-470.0,0.00028767,2]
[359346137,1745946669386,-470.0,0.00028767,2]
[359346138,1745946669396,-686.43,0.00028767,2]
[359346139,1745946669405,-470.0,0.00028767,2]
[359346140,1745946669416,-470.0,0.00028767,2]
[359346141,1745946669426,-470.0,0.00028767,2]
[359346142,1745946669435,-1074.0,0.00028767,2]
[359346143,1745946669445,-496.91,0.00028767,2]
[359346144,1745946669455,-633.55,0.00028767,2]
[359346145,1745946669466,-664.04,0.00028767,2]
[359346146,1745946669475,-828.41,0.00028767,2]
[359346147,1745946669485,-470.0,0.00028767,2]
[359346148,1745946669495,-470.0,0.00028767,2]
[359346149,1745946669505,-470.0,0.00028767,2]
[359346150,1745946669514,-470.0,0.00028767,2]
[359346151,1745946669523,-480.18,0.00028767,2]
[359346152,1745946669532,-470.0,0.00028767,2]
[359346153,1745946669541,-470.0,0.00028767,2]
[359346154,1745946669550,-470.0,0.00028767,2]
[359346155,1745946669559,-637.6,0.00028767,2]
[359346156,1745946669568,-470.0,0.00028767,2]
[359346157,1745946669578,-470.0,0.00028767,2]
[359346158,1745946669587,-360.328556,0.00028767,2]
[359346159,1745946669597,-470.0,0.00028767,2]
[359346160,1745946669607,-470.0,0.00028767,2]
[359346161,1745946669616,-449.81338724,0.00028767,2]
[359346162,1745946669626,-470.0,0.00028767,2]
[359346163,1745946669636,-613.1,0.00028767,2]
[359346164,1745946669645,-822.31,0.00028767,2]
[359346165,1745946669654,-470.0,0.00028767,2]
[359346166,1745946669664,-470.0,0.00028767,2]
[359346167,1745946669673,-470.0,0.00028767,2]
[359346168,1745946669682,-740.36,0.00028767,2]
[359346169,1745946669691,-470.0,0.00028767,2]
[359346170,1745946669701,-490.15,0.00028767,2]
[359346171,1745946669711,-474.00763637,0.00028767,2]
[359346172,1745946669721,-500.0,0.00028767,2]
[359346173,1745946669730,-470.0,0.00028767,2]
[359346174,1745946669740,-1158.93,0.00028767,2]
[359346175,1745946669751,-470.0,0.00028767,2]
[359346176,1745946669760,-600.27,0.00028767,2]
[359346177,1745946669769,-480.75,0.00028767,2]
[359346178,1745946669778,-828.51,0.00028767,2]
[359346179,1745946669788,-569.9,0.00028767,2]
[359346180,1745946669798,-470.0,0.00028767,2]
[359346181,1745946669807,-1775.54,0.00028767,2]
[359346182,1745946669817,-989.38,0.00028767,2]
[359346183,1745946669825,-743.53,0.00028767,2]
[359346184,1745946669835,-470.0,0.00028767,2]
[359346185,1745946669844,-470.0,0.00028767,2]
[359346186,1745946669854,-394.35379245,0.00028767,2]
[359346187,1745946669863,-533.85,0.00028767,2]
[359346188,1745946669872,-470.0,0.00028767,2]
[359346189,1745946669881,-470.0,0.00028767,2]
[359346190,1745946669891,-470.0,0.00028767,2]
[359346191,1745946669900,-512.19,0.00028767,2]
[359346192,1745946669910,-876.37,0.00028767,2]
[359346193,1745946669919,-825.85,0.00028767,2]
[359346194,1745946669928,-888.63,0.00028767,2]
[359346195,1745946669938,-720.21,0.00028767,2]
[359346196,1745946669948,-470.0,0.00028767,2]
[359346197,1745946669957,-470.0,0.00028767,2]
[359346198,1745946669966,-592.42,0.00028767,2]
[359346199,1745946669976,-470.0,0.00028767,2]
[359346200,1745946669985,-470.0,0.00028767,2]
[359346201,1745946669995,-1663.01,0.00028767,2]
[359346202,1745946670005,-715.99,0.00028767,2]
[359346203,1745946670015,-971.57,0.00028767,2]
[359346204,1745946670024,-470.0,0.00028767,2]
[359346205,1745946670034,-470.0,0.00028767,2]
[359346206,1745946670043,-470.0,0.00028767,2]
[359346207,1745946670053,-470.0,0.00028767,2]
[359346208,1745946670062,-642.99,0.00028767,2]
[359346209,1745946670072,-470.0,0.00028767,2]
[359346210,1745946670082,-470.0,0.00028767,2]
[359346211,1745946670091,-470.0,0.00028767,2]
[359346212,1745946670099,-470.0,0.00028767,2]
[359346213,1745946670108,-470.0,0.00028767,2]
[359346214,1745946670117,-470.0,0.00028767,2]
[359346215,1745946670127,-570.97,0.00028767,2]
[359346216,1745946670136,-695.71,0.00028767,2]
[359346217,1745946670146,-466.19940993,0.00028767,2]
[359346218,1745946670155,-700.74,0.00028767,2]
[359346219,1745946670164,-470.0,0.00028767,2]
[359346220,1745946670173,-470.0,0.00028767,2]
[359346221,1745946670182,-470.0,0.00028767,2]
[359346222,1745946670191,-783.85,0.00028767,2]
[359346223,1745946670203,-700.22,0.00028767,2]
[359346224,1745946670215,-470.0,0.00028767,2]
[359346225,1745946670226,-1807.3,0.00028767,2]
[359346226,1745946670236,-470.0,0.00028767,2]
[359346227,1745946670246,-824.71,0.00028767,2]
[359346228,1745946670255,-690.41,0.00028767,2]
[359346229,1745946670265,-476.72031413,0.00028767,2]
[359346230,1745946670275,-345.75921299,0.00028767,2]
[359346231,1745946670284,-470.0,0.00028767,2]
[359346232,1745946670293,-470.0,0.00028767,2]
[359346233,1745946670303,-470.0,0.00028767,2]
[359346234,1745946670312,-470.0,0.00028767,2]
[359346235,1745946670321,-600.82,0.00028767,2]
[359346236,1745946670331,-738.0,0.00028767,2]
[359346237,1745946670341,-1573.39,0.00028767,2]
[359346238,1745946670351,-470.0,0.00028767,2]
[359346239,1745946670360,-470.0,0.00028767,2]
[359346240,1745946670372,-470.0,0.00028767,2]
[359346241,1745946670381,-873.21,0.00028767,2]
[359346242,1745946670391,-653.85,0.00028767,2]
[359346243,1745946670401,-470.0,0.00028767,2]
[359346244,1745946670412,-470.0,0.00028767,2]
[359346245,1745946670422,-882.89,0.00028767,2]
[359346246,1745946670432,-807.35,0.00028767,2]
[359346247,1745946670442,-654.75,0.00028767,2]
[359346248,1745946670451,-470.0,0.00028767,2]
[359346249,1745946670461,-470.0,0.00028767,2]
[359346250,1745946670470,-610.55,0.00028767,2]
[359346251,1745946670479,-470.0,0.00028767,2]
[359346252,1745946670488,-593.23,0.00028767,2]
[359346253,1745946670497,-470.0,0.00028767,2]
[359346254,1745946670507,-470.0,0.00028767,2]
[359346255,1745946670516,-509.64,0.00028767,2]
[359346256,1745946670525,-470.0,0.00028767,2]
[359346257,1745946670534,-978.08,0.00028767,2]
[359346258,1745946670543,-781.68,0.00028767,2]
[359346259,1745946670553,-1521.18,0.00028767,2]
[359346260,1745946670562,-609.07,0.00028767,2]
[359346261,1745946670572,-623.29,0.00028767,2]
[359346262,1745946670580,-1076.85,0.00028767,2]
[359346263,1745946670589,-470.0,0.00028767,2]
[359346264,1745946670599,-1033.91,0.00028767,2]
[359346265,1745946670608,-1113.52,0.00028767,2]
[359346266,1745946670617,-470.0,0.00028767,2]
[359346267,1745946670626,-470.0,0.00028767,2]
[359346268,1745946670635,-1107.01,0.00028767,2]
[359346269,1745946670644,-613.5,0.00028767,2]
[359346270,1745946670653,-470.0,0.00028767,2]
[359346271,1745946670663,-4648.92,0.00028767,2]
[359346272,1745946670672,-470.0,0.00028767,2]
[359346273,1745946670681,-470.0,0.00028767,2]
[359346274,1745946670690,-1015.66,0.00028767,2]
[359346275,1745946670699,-802.91,0.00028767,2]
[359346276,1745946670709,-833.9,0.00028767,2]
[359346277,1745946670718,-470.0,0.00028767,2]
[359346278,1745946670727,-502.17,0.00028767,2]
[359346279,1745946670737,-2447.99,0.00028767,2]
[359346280,1745946670746,-470.0,0.00028767,2]
[359346281,1745946670756,-470.0,0.00028767,2]
[359346282,1745946670765,-470.0,0.00028767,2]
[359346283,1745946670774,-2885.7,0.00028767,2]
[359346284,1745946670783,-470.0,0.00028767,2]
[359346285,1745946670792,-614.61,0.00028767,2]
[359346286,1745946670802,-470.0,0.00028767,2]
[359346287,1745946670811,-613.23,0.00028767,2]
[359346288,1745946670821,-470.0,0.00028767,2]
[359346289,1745946670831,-2481.7,0.00028767,2]
[359346290,1745946670840,-470.0,0.00028767,2]
[359346291,1745946670849,-470.0,0.00028767,2]
[359346292,1745946670858,-470.0,0.00028767,2]
[359346293,1745946670867,-470.0,0.00028767,2]
[359346294,1745946670876,-470.0,0.00028767,2]
[359346295,1745946670885,-1347.18,0.00028767,2]
[359346296,1745946670895,-470.0,0.00028767,2]
[359346297,1745946670904,-470.0,0.00028767,2]
[359346298,1745946670914,-470.0,0.00028767,2]
[359346299,1745946670923,-776.92,0.00028767,2]
[359346300,1745946670934,-470.0,0.00028767,2]
[359346301,1745946670943,-470.0,0.00028767,2]
[359346302,1745946670952,-864.24,0.00028767,2]
[359346303,1745946670962,-3036.85,0.00028767,2]
[359346304,1745946670971,-361.62505554,0.00028767,2]
[359346305,1745946670981,-470.0,0.00028767,2]
[359346306,1745946670990,-470.0,0.00028767,2]
[359346307,1745946671000,-470.0,0.00028767,2]
[359346308,1745946671009,-470.0,0.00028767,2]
[359346309,1745946671020,-723.05,0.00028767,2]
[359346310,1745946671030,-1409.09,0.00028767,2]
[359346311,1745946671039,-470.0,0.00028767,2]
[359346312,1745946671049,-470.0,0.00028767,2]
[359346313,1745946671058,-656.63,0.00028767,2]
[359346314,1745946671068,-651.63,0.00028767,2]
[359346315,1745946671077,-594.39,0.00028767,2]
[359346316,1745946671086,-2157.65,0.00028767,2]
[359346317,1745946671096,-470.0,0.00028767,2]
[359346318,1745946671106,-470.0,0.00028767,2]
[359346319,1745946671116,-642.31,0.00028767,2]
[359346320,1745946671125,-470.0,0.00028767,2]
[359346321,1745946671135,-1519.41,0.00028767,2]
[359346322,1745946671144,-470.0,0.00028767,2]
[359346323,1745946671154,-488.62,0.00028767,2]
[359346324,1745946671163,-1072.93,0.00028767,2]
[359346325,1745946671173,-470.0,0.00028767,2]
[359346326,1745946671182,-470.0,0.00028767,2]
[359346327,1745946671192,-470.0,0.00028767,2]
[359346328,1745946671204,-470.0,0.00028767,2]
[359346329,1745946671214,-969.41,0.00028767,2]
[359346330,1745946671224,-506.76,0.00028767,2]
[359346331,1745946671234,-470.0,0.00028767,2]
[359346332,1745946671245,-861.49,0.00028767,2]
[359346333,1745946671254,-1677.31,0.00028767,2]
[359346334,1745946671263,-1174.91,0.00028767,2]
[359346335,1745946671273,-470.0,0.00028767,2]
[359346336,1745946671282,-470.0,0.00028767,2]
[359346337,1745946671292,-748.47,0.00028767,2]
[359346338,1745946671303,-470.0,0.00028767,2]
[359346339,1745946671311,-470.0,0.00028767,2]
[359346340,1745946671320,-623.25,0.00028767,2]
[359346341,1745946671329,-3336.25,0.00028767,2]
[359346342,1745946671338,-1316.54,0.00028767,2]
[359346343,1745946671348,-1660.91,0.00028767,2]
[359346344,1745946671356,-470.0,0.00028767,2]
[359346345,1745946671365,-3275.58,0.00028767,2]
[359346346,1745946671374,-1213.97,0.00028767,2]
[359346347,1745946671383,-588.09,0.00028767,2]
[359346348,1745946671392,-470.0,0.00028767,2]
[359346349,1745946671402,-873.78,0.00028767,2]
[359346350,1745946671411,-470.0,0.00028767,2]
[359346351,1745946671420,-601.81,0.00028767,2]
[359346352,1745946671429,-691.35,0.00028767,2]
[359346353,1745946671438,-831.4,0.00028767,2]
[359346354,1745946671447,-470.0,0.00028767,2]
[359346355,1745946671456,-1001.99,0.00028767,2]
[359346356,1745946671465,-470.0,0.00028767,2]
[359346357,1745946671474,-470.0,0.00028767,2]
[359346358,1745946671483,-470.0,0.00028767,2]
[359346359,1745946671492,-470.0,0.00028767,2]
[359346360,1745946671502,-470.0,0.00028767,2]
[359346361,1745946671512,-812.69,0.00028767,2]
[359346362,1745946671521,-470.0,0.00028767,2]
[359346363,1745946671530,-568.54,0.00028767,2]
[359346364,1745946671539,-851.3,0.00028767,2]
[359346365,1745946671547,-820.55,0.00028767,2]
[359346366,1745946671557,-470.0,0.00028767,2]
[359346367,1745946671565,-749.52,0.00028767,2]
[359346368,1745946671575,-801.96,0.00028767,2]
[359346369,1745946671584,-470.0,0.00028767,2]
[359346370,1745946671593,-470.0,0.00028767,2]
[359346371,1745946671602,-9718.3,0.00028767,2]
[359346372,1745946671611,-470.0,0.00028767,2]
[359346373,1745946671620,-613.25,0.00028767,2]
[359346374,1745946671629,-470.0,0.00028767,2]
[359346375,1745946671639,-470.0,0.00028767,2]
[359346376,1745946671648,-656.07,0.00028767,2]
[359346377,1745946671657,-470.0,0.00028767,2]
[359346378,1745946671666,-470.0,0.00028767,2]
[359346379,1745946671675,-678.43,0.00028767,2]
[359346380,1745946671683,-594.62,0.00028767,2]
[359346381,1745946671692,-1184.37,0.00028767,2]
[359346382,1745946671702,-667.04,0.00028767,2]
[359346383,1745946671711,-1719.35,0.00028767,2]
[359346384,1745946671721,-781.33,0.00028767,2]
[359346385,1745946671731,-507.09,0.00028767,2]
[359346386,1745946671741,-852.07,0.00028767,2]
[359346387,1745946671751,-858.82,0.00028767,2]
[359346388,1745946671760,-672.94,0.00028767,2]
[359346389,1745946671769,-470.0,0.00028767,2]
[359346390,1745946671778,-470.0,0.00028767,2]
[359346391,1745946671787,-701.35,0.00028767,2]
[359346392,1745946671796,-1660.74,0.00028767,2]
[359346393,1745946671806,-470.0,0.00028767,2]
[359346394,1745946671815,-551.49,0.00028767,2]
[359346395,1745946671824,-1172.55,0.00028767,2]
[359346396,1745946671833,-470.0,0.00028767,2]
[359346397,1745946671842,-682.23,0.00028767,2]
[359346398,1745946671851,-470.0,0.00028767,2]
[359346399,1745946671860,-470.0,0.00028767,2]
[359346400,1745946671869,-487.56,0.00028767,2]
[359346401,1745946671878,-894.34,0.00028767,2]
[359346402,1745946671888,-503.3,0.00028767,2]
[359346403,1745946671897,-470.0,0.00028767,2]
[359346404,1745946671907,-631.72,0.00028767,2]
[359346405,1745946671916,-634.28,0.00028767,2]
[359346406,1745946671927,-1263.57,0.00028767,2]
[359346407,1745946671936,-9944.47,0.00028767,2]
[359346408,1745946671946,-937.96,0.00028767,2]
[359346409,1745946671956,-470.0,0.00028767,2]
[359346410,1745946671966,-470.0,0.00028767,2]
[359346411,1745946671976,-470.0,0.00028767,2]
[359346412,1745946671986,-511.67,0.00028767,2]
[359346413,1745946671995,-917.5,0.00028767,2]
[359346414,1745946672005,-2882.95046142,0.00028866,8]
[359346415,1745946672015,-296.48367609,0.00028872,2]
[359346416,1745946672024,-470.0,0.00028881,2]
[359346417,1745946672034,-1561.69,0.000289,2]
[359346418,1745946672043,-1495.57,0.000289,2]
[359346419,1745946672053,-223.0315306,0.00028909,2]
[359346420,1745946672063,-415.16,0.00028913,2]
[359346421,1745946672072,-8172.30412234,0.00028955,2]
[359346422,1745946672458,-1038.45600931,0.00027118,2]
[359346423,1745946672467,-470.0,0.00027397,2]
[359346424,1745946672476,-470.0,0.00027397,2]
[359346425,1745946672485,-470.0,0.00027397,2]
[359346426,1745946672494,-470.0,0.00027397,2]
[359346427,1745946672504,-470.0,0.00027671,2]
[359346428,1745946672514,-470.0,0.00027671,2]
[359346429,1745946672523,-470.0,0.00027671,2]
[359346430,1745946672532,-470.0,0.00027945,2]
[359346431,1745946672542,-470.0,0.00028219,2]
[359346432,1745946672551,-154.35194751,0.00028493,2]
[359346433,1745946672563,-315.64805249,0.00028493,2]
[359346434,1745946672572,-233.02394491,0.00028767,2]
[359346435,1745946672588,-483.64097637,0.00027945,2]
[359346436,1745946672597,-236.97605509,0.00028767,2]
[359346437,1745946672607,-16200.88351533,0.00028955,2]
[359346438,1745946672618,-263.55211147,0.00028955,2]
[359346439,1745946672635,-4620.16175024,0.00028955,2]
[359346440,1745946672647,-22198.97850062,0.00028955,2]
[359346441,1745946672656,-236.06,0.00028971,2]
[359346442,1745946672666,-3023.67606578,0.0002898,2]
[359346443,1745946672675,-562.67,0.00028999,2]
[359346444,1745946672684,-62590.30938105,0.00029,2]
[359346445,1745946672700,-150.0,0.00027798,2]
[359346446,1745946672709,-5715.69209416,0.00029,2]
[359346447,1745946672720,-6780.97494283,0.00029,2]